fUSD/lending_fUSD_20250825
["ID","MTS","AMOUNT","RATE_DAILY","PERIOD"]
[381148494,1756080198683,481.34,0.00025096,120]
[381148495,1756080199093,481.34,0.00027606,120]
[381148589,1756080632226,-216.91,0.00013699,2]
[381148590,1756080632236,-371.05492217,0.00019041,2]
[381148591,1756080632248,-128.94507783,0.00019041,2]
[381148592,1756080632257,-219.65,0.00019999,2]
[381148593,1756080632266,-550.0,0.0002,2]
[381148594,1756080632275,-666.0,0.00020039,3]
[381148595,1756080632284,-481.34,0.00020077,2]
[381148596,1756080632294,-1400.21467085,0.00020117,2]
[381148597,1756080632303,-1000.0,0.00020117,2]
[381148598,1756080632313,-488.26,0.00020123,2]
[381148599,1756080632322,-163.44,0.00020184,2]
[381148600,1756080632331,-936.24,0.00020184,2]
[381148601,1756080632341,-150.0,0.00020184,2]
[381148602,1756080632350,-211.37775668,0.00020185,2]
[381148603,1756080632396,-288.62224332,0.00020185,2]
[381148604,1756080632405,-500.0,0.00020185,2]
[381148605,1756080632415,-500.0,0.00020185,2]
[381148606,1756080632425,-500.0,0.00020185,2]
[381148607,1756080632434,-216.91,0.00020187,2]
[381148608,1756080632443,-358.02,0.00020197,2]
[381148609,1756080632453,-443.4257537,0.00020197,2]
[381148610,1756080632463,-456.7619462,0.00020197,2]
[381148611,1756080632472,-450.43493706,0.00020197,2]
[381148612,1756080632481,-441.37873357,0.00020197,2]
[381148613,1756080632490,-200.93976569,0.00020197,2]
[381148614,1756080632501,-248.34994838,0.00020197,2]
[381148615,1756080632511,-457.83025891,0.00020197,2]
[381148616,1756080632519,-457.64319768,0.00020198,2]
[381148617,1756080632528,-451.46646635,0.00020198,2]
[381148618,1756080632537,-443.58850931,0.00020199,2]
[381148619,1756080632546,-38.40829682,0.00020199,2]
[381148620,1756080632558,-416.10403707,0.00020199,2]
[381148621,1756080632566,-444.64078458,0.00020201,2]
[381148622,1756080632575,-445.0249853,0.00020201,2]
[381148623,1756080632585,-452.46681644,0.00020201,2]
[381148624,1756080632594,-442.51506521,0.00020205,2]
[381148625,1756080632603,-75.3221114,0.00020205,2]
[381148626,1756080632651,-369.19735603,0.00020205,2]
[381148627,1756080632660,-451.78336004,0.00020205,2]
[381148628,1756080632669,-671.95,0.00020211,2]
[381148629,1756080632680,-958.65,0.00020211,2]
[381148630,1756080632689,-413.96,0.00020211,2]
[381148631,1756080632698,-400.0,0.00020211,2]
[381148632,1756080632707,-400.0,0.00020211,2]
[381148633,1756080632717,-400.0,0.00020211,2]
[381148634,1756080632726,-927.46,0.00020211,2]
[381148635,1756080632735,-486.8,0.00020211,2]
[381148636,1756080632744,-400.0,0.00020211,2]
[381148637,1756080632753,-400.0,0.00020211,2]
[381148638,1756080632762,-1047.03,0.00020211,2]
[381148639,1756080632771,-1633.7,0.00020211,2]
[381148640,1756080632780,-533.04,0.00020211,2]
[381148641,1756080632789,-951.14,0.00020211,2]
[381148642,1756080632798,-400.0,0.00020211,2]
[381148643,1756080632807,-954.14,0.00020211,2]
[381148644,1756080632816,-400.0,0.00020211,2]
[381148645,1756080632825,-691.8,0.00020211,2]
[381148646,1756080632834,-790.87,0.00020211,2]
[381148647,1756080632843,-1509.76,0.00020211,2]
[381148648,1756080632852,-400.0,0.00020211,2]
[381148649,1756080632861,-1006.82,0.00020211,2]
[381148650,1756080632871,-827.47,0.00020211,2]
[381148651,1756080632880,-400.0,0.00020211,2]
[381148652,1756080632890,-1708.75,0.00020211,2]
[381148653,1756080632900,-538.51,0.00020211,2]
[381148654,1756080632909,-745.85,0.00020211,2]
[381148655,1756080632918,-1146.47,0.00020211,2]
[381148656,1756080632928,-1183.33,0.00020211,2]
[381148657,1756080632938,-761.77,0.00020211,2]
[381148658,1756080632948,-533.44,0.00020211,2]
[381148659,1756080632957,-1620.77,0.00020211,2]
[381148660,1756080632966,-2022.08,0.00020211,2]
[381148661,1756080632975,-400.0,0.00020211,2]
[381148662,1756080632984,-914.61,0.00020211,2]
[381148663,1756080632995,-937.66,0.00020211,2]
[381148664,1756080633004,-1491.03,0.00020211,2]
[381148665,1756080633013,-737.86,0.00020211,2]
[381148666,1756080633023,-783.79,0.00020211,2]
[381148667,1756080633032,-1268.78,0.00020211,2]
[381148668,1756080633043,-400.0,0.00020211,2]
[381148669,1756080633052,-400.0,0.00020211,2]
[381148670,1756080633062,-400.0,0.00020211,2]
[381148671,1756080633071,-879.01,0.00020211,2]
[381148672,1756080633082,-1400.38,0.00020211,2]
[381148673,1756080633092,-952.75,0.00020211,2]
[381148674,1756080633102,-484.07,0.00020211,2]
[381148675,1756080633111,-400.0,0.00020211,2]
[381148676,1756080633121,-521.29,0.00020211,2]
[381148677,1756080633131,-1377.68,0.00020211,2]
[381148678,1756080633141,-938.81,0.00020211,2]
[381148679,1756080633151,-1335.32,0.00020211,2]
[381148680,1756080633161,-1917.81,0.00020211,2]
[381148681,1756080633172,-1296.99,0.00020211,2]
[381148682,1756080633182,-990.47,0.00020211,2]
[381148683,1756080633192,-400.0,0.00020211,2]
[381148684,1756080633201,-590.24,0.00020211,2]
[381148685,1756080633210,-1669.66,0.00020211,2]
[381148686,1756080633219,-1585.59,0.00020211,2]
[381148687,1756080633229,-1238.6,0.00020211,2]
[381148688,1756080633238,-901.11,0.00020211,2]
[381148689,1756080633248,-2031.74,0.00020211,2]
[381148690,1756080633257,-400.0,0.00020211,2]
[381148691,1756080633266,-400.0,0.00020211,2]
[381148692,1756080633276,-400.0,0.00020211,2]
[381148693,1756080633286,-500.0,0.00020211,2]
[381148694,1756080633295,-710.0,0.00020211,2]
[381148695,1756080633305,-669.15,0.00020211,2]
[381148696,1756080633314,-400.0,0.00020211,2]
[381148697,1756080633324,-400.0,0.00020211,2]
[381148698,1756080633333,-1751.86,0.00020211,2]
[381148699,1756080633343,-541.48092998,0.00020211,2]
[381148700,1756080633352,-903.72,0.00020211,2]
[381148701,1756080633680,-1475.67,0.00020211,2]
[381148702,1756080633696,-1339.43,0.00020211,2]
[381148703,1756080633707,-1309.16,0.00020211,2]
[381148704,1756080633717,-1031.33,0.00020211,2]
[381148705,1756080633727,-1655.29,0.00020211,2]
[381148706,1756080633736,-1556.61,0.00020211,2]
[381148707,1756080633747,-527.72,0.00020211,2]
[381148708,1756080633756,-558.15,0.00020211,2]
[381148709,1756080633766,-639.85,0.00020211,2]
[381148710,1756080633775,-400.0,0.00020211,2]
[381148711,1756080633784,-500.0,0.00020211,2]
[381148712,1756080633794,-400.0,0.00020211,2]
[381148713,1756080633803,-1899.5,0.00020211,2]
[381148714,1756080633812,-881.86,0.00020211,2]
[381148715,1756080633822,-1290.41,0.00020211,2]
[381148716,1756080633831,-1146.72,0.00020211,2]
[381148717,1756080633840,-570.61,0.00020211,2]
[381148718,1756080633850,-606.49,0.00020211,2]
[381148719,1756080633860,-1096.1,0.00020211,2]
[381148720,1756080633869,-400.0,0.00020211,2]
[381148721,1756080633879,-1046.73,0.00020211,2]
[381148722,1756080633889,-508.72,0.00020211,2]
[381148723,1756080633898,-400.0,0.00020211,2]
[381148724,1756080633908,-1248.99,0.00020211,2]
[381148725,1756080633917,-445.61698759,0.00020214,2]
[381148726,1756080633928,-454.70555321,0.00020214,2]
[381148727,1756080633938,-267.46074303,0.00020242,2]
[381148728,1756080633948,-322.6107,0.00020242,2]
[381148729,1756080633957,-160.0,0.00020242,2]
[381148730,1756080633968,-150.13,0.00020246,2]
[381148731,1756080633978,-442.65211802,0.00020251,2]
[381148732,1756080633988,-458.63746581,0.00020251,2]
[381148733,1756080633997,-212.11701231,0.00020251,2]
[381148734,1756080634007,-456.06409812,0.00020252,2]
[381148735,1756080634017,-443.10337906,0.00020257,2]
[381148736,1756080634027,-444.59474985,0.00020257,2]
[381148737,1756080634036,-448.69381894,0.00020257,2]
[381148738,1756080634046,-150.9,0.00020264,2]
[381148739,1756080634056,-446.66381735,0.00020264,2]
[381148740,1756080634065,-151.16,0.00020264,2]
[381148741,1756080634075,-455.76013637,0.00020285,2]
[381148742,1756080634084,-447.8667421,0.00020285,2]
[381148743,1756080634094,-1276.27,0.00020324,2]
[381148744,1756080634103,-151.5,0.00020362,2]
[381148745,1756080634113,-155.55290223,0.00020385,2]
[381148746,1756080634122,-1289.93,0.00020424,2]
[381148747,1756080634132,-1257.87,0.00020424,2]
[381148748,1756080634141,-1250.37,0.00020424,2]
[381148749,1756080634150,-1255.66,0.00020428,2]
[381148750,1756080634160,-153.24,0.00020475,2]
[381148751,1756080634169,-1342.35659832,0.00020475,2]
[381148752,1756080634179,-400.0,0.00020484,2]
[381148753,1756080634189,-400.0,0.00020484,2]
[381148754,1756080634198,-59454.19813852,0.00020485,8]
[381148755,1756080634208,-671.95,0.00020485,2]
[381148756,1756080634218,-958.65,0.00020485,2]
[381148757,1756080634228,-413.96,0.00020485,2]
[381148758,1756080634237,-400.0,0.00020485,2]
[381148759,1756080634247,-400.0,0.00020485,2]
[381148760,1756080634257,-400.0,0.00020485,2]
[381148761,1756080634266,-927.46,0.00020485,2]
[381148762,1756080634276,-486.8,0.00020485,2]
[381148763,1756080634286,-400.0,0.00020485,2]
[381148764,1756080634296,-400.0,0.00020485,2]
[381148765,1756080634305,-1047.03,0.00020485,2]
[381148766,1756080634315,-757.79939312,0.00020485,2]
[381148767,1756080634328,-875.90060688,0.00020485,2]
[381148768,1756080634338,-533.04,0.00020485,2]
[381148769,1756080634348,-72.9576938,0.00020485,2]
[381148772,1756080637783,-199.02528156,0.00020484,2]
[381148773,1756080637793,-400.0,0.00020484,2]
[381148774,1756080637803,-878.1823062,0.00020485,2]
[381148775,1756080637812,-297.64309639,0.00020485,2]
[381148776,1756080637855,-102.35690361,0.00020485,2]
[381148777,1756080637864,-954.14,0.00020485,2]
[381148779,1756080637874,-293.45254801,0.00020485,2]
[381148781,1756080637887,-691.8,0.00020485,2]
[381148783,1756080637896,-790.87,0.00020485,2]
[381148785,1756080637905,-1509.76,0.00020485,2]
[381148787,1756080637915,-400.0,0.00020485,2]
[381148788,1756080637923,-1006.82,0.00020485,2]
[381148790,1756080637935,-827.47,0.00020485,2]
[381148792,1756080637944,-323.33054838,0.00020485,2]
[381148832,1756080639486,-426.03469153,0.00020211,2]
[381148837,1756080639860,-894.24530847,0.00020211,2]
[381148839,1756080639870,-536.13,0.00020211,2]
[381148841,1756080639879,-37134.08666017,0.00020484,8]
[381148846,1756080642950,-831.22710826,0.00020211,2]
[381148849,1756080645614,-476.67,0.00020211,2]
[381148850,1756080645710,-300.75039232,0.00020211,2]
[381148851,1756080645841,-340.67249942,0.00020211,2]
[381148852,1756080645850,-59.32750058,0.00020484,2]
[381148855,1756080724510,1000.0,0.00022202,120]
[381148856,1756080724569,1000.0,0.00020197,120]
[381148861,1756080812168,158.0,0.000287,120]
[381148862,1756080813336,158.0,0.000287,120]
[381148863,1756080843766,1000.0,0.00022,120]
[381148877,1756081178065,251.03,0.00026703,120]
[381149026,1756081831705,-195.21,0.00013699,2]
[381149027,1756081831715,-150.0,0.00015068,2]
[381149028,1756081831725,-175.98087229,0.00015699,2]
[381149029,1756081831735,-470.90682105,0.00017534,2]
[381149030,1756081831851,-29.09317895,0.00017534,2]
[381149031,1756081831862,-150.0,0.00018419,2]
[381149032,1756081831872,-150.0,0.00018419,2]
[381149033,1756081831882,-470.87,0.00019006,2]
[381149034,1756081831892,-153.73,0.00019015,2]
[381149035,1756081831901,-625.51,0.00019024,2]
[381149036,1756081831911,-153.73,0.00019039,2]
[381149037,1756081831921,-153.73,0.00019062,2]
[381149038,1756081831930,-153.73,0.00019086,2]
[381149039,1756081831940,-153.73,0.0001911,2]
[381149040,1756081831949,-666.0,0.00019152,3]
[381149041,1756081831959,-150.0,0.0001916,2]
[381149042,1756081831968,-200.0,0.0001917,2]
[381149043,1756081831978,-263.97130843,0.00019178,7]
[381149044,1756081831987,-250.0,0.00019246,2]
[381149045,1756081831997,-2272.36,0.00019293,2]
[381149046,1756081832011,-251.03,0.00019421,2]
[381149047,1756081832020,-164.57,0.00019458,2]
[381149048,1756081832030,-1000.0,0.00019483,2]
[381149049,1756081832039,-436.28,0.00019507,2]
[381149051,1756081832049,-204.32,0.00019515,2]
[381149052,1756081832058,-300.0,0.00019558,2]
[381149053,1756081832068,-1200.0,0.00019558,2]
[381149054,1756081832077,-267.0,0.00019558,2]
[381149055,1756081832087,-1199.0,0.00019559,2]
[381149056,1756081832096,-4846.69,0.0001956,2]
[381149057,1756081832106,-2400.0,0.000197,7]
[381149058,1756081832116,-500.0,0.00019711,2]
[381149073,1756081832125,-4900.0,0.000198,7]
[381149074,1756081832481,-7400.0,0.000199,7]
[381149075,1756081832491,-539.0,0.000199,2]
[381149076,1756081832500,-458.63746581,0.000199,7]
[381149077,1756081832511,-166.66,0.00019931,2]
[381149078,1756081832520,-154.0,0.0002,2]
[381149079,1756081832530,-158.0,0.0002,2]
[381149080,1756081832539,-158.0,0.0002,3]
[381149081,1756081832549,-160.0,0.0002,3]
[381149082,1756081832558,-162.0,0.0002,6]
[381149083,1756081832568,-1250.0,0.00020095,3]
[381149084,1756081832578,-1250.0,0.00020095,3]
[381149085,1756081832587,-408.42,0.00020121,2]
[381149086,1756081832596,-816.54,0.00020121,2]
[381149087,1756081832606,-408.53,0.00020121,2]
[381149088,1756081832615,-816.95,0.00020178,2]
[381149089,1756081832624,-195.21,0.00020187,2]
[381149090,1756081832633,-453.19061542,0.00020199,2]
[381149091,1756081832643,-150.0,0.000202,2]
[381149092,1756081832652,-539.08,0.000202,2]
[381149093,1756081832661,-166.02,0.000202,2]
[381149094,1756081832670,-862.72090888,0.00020201,2]
[381149095,1756081832679,-692.5966462,0.00020207,2]
[381149096,1756081832691,-578.8633538,0.00020207,2]
[381149097,1756081832700,-1000.0,0.0002021,2]
[381149098,1756081832709,-500.0,0.0002021,2]
[381149099,1756081832719,-548.37714532,0.0002021,2]
[381149100,1756081832728,-494.84,0.00020211,2]
[381149101,1756081832737,-446.33,0.00020211,2]
[381149102,1756081832746,-1797.82,0.00020211,2]
[381149103,1756081832759,-493.41,0.00020211,2]
[381149104,1756081832768,-590.91861169,0.00020211,2]
[381149108,1756081832923,-333.71138831,0.00020211,2]
[381149109,1756081832932,-400.0,0.00020211,2]
[381149110,1756081832942,-1146.11,0.00020211,2]
[381149112,1756081832951,-1086.39,0.00020211,2]
[381149113,1756081832961,-763.93,0.00020211,2]
[381149114,1756081832971,-1941.03,0.00020211,2]
[381149115,1756081832981,-1371.43,0.00020211,2]
[381149116,1756081832990,-543.38,0.00020211,2]
[381149117,1756081832999,-591.26,0.00020211,2]
[381149118,1756081833011,-1809.85,0.00020211,2]
[381149119,1756081833020,-400.0,0.00020211,2]
[381149120,1756081833030,-967.34,0.00020211,2]
[381149121,1756081833040,-400.0,0.00020211,2]
[381149122,1756081833050,-400.0,0.00020211,2]
[381149123,1756081833060,-801.56,0.00020211,2]
[381149124,1756081833070,-400.0,0.00020211,2]
[381149125,1756081833080,-1996.23,0.00020211,2]
[381149126,1756081833090,-400.0,0.00020211,2]
[381149127,1756081833100,-638.11,0.00020211,2]
[381149128,1756081833109,-735.24,0.00020211,2]
[381149129,1756081833119,-1372.0,0.00020211,2]
[381149130,1756081833129,-541.73,0.00020211,2]
[381149131,1756081833139,-1501.48,0.00020211,2]
[381149132,1756081833149,-538.9896045,0.00020211,2]
[381149133,1756081833158,-751.63,0.00020211,2]
[381149134,1756081833167,-754.89,0.00020211,2]
[381149135,1756081833176,-1032.63,0.00020211,2]
[381149136,1756081833187,-870.81,0.00020211,2]
[381149137,1756081833197,-978.63,0.00020211,2]
[381149138,1756081833207,-557.33,0.00020211,2]
[381149139,1756081833216,-911.48,0.00020211,2]
[381149140,1756081833226,-782.31,0.00020211,2]
[381149141,1756081833235,-400.0,0.00020211,2]
[381149142,1756081833245,-400.0,0.00020211,2]
[381149143,1756081833256,-400.0,0.00020211,2]
[381149144,1756081833265,-876.19,0.00020211,2]
[381149145,1756081833275,-867.74,0.00020211,2]
[381149146,1756081833284,-1299.64,0.00020211,2]
[381149147,1756081833294,-520.13,0.00020211,2]
[381149148,1756081833303,-970.9,0.00020211,2]
[381149149,1756081833313,-516.24,0.00020211,2]
[381149150,1756081833323,-859.92,0.00020211,2]
[381149151,1756081833332,-400.0,0.00020211,2]
[381149152,1756081833343,-1055.07,0.00020211,2]
[381149153,1756081833353,-400.0,0.00020211,2]
[381149154,1756081833362,-1708.44,0.00020211,2]
[381149155,1756081833372,-400.0,0.00020211,2]
[381149156,1756081833381,-1652.54,0.00020211,2]
[381149157,1756081833391,-400.0,0.00020211,2]
[381149158,1756081833401,-690.4,0.00020211,2]
[381149159,1756081833411,-706.84,0.00020211,2]
[381149160,1756081833420,-621.13,0.00020211,2]
[381149161,1756081833429,-413.05,0.00020211,2]
[381149162,1756081833439,-894.89,0.00020211,2]
[381149163,1756081833448,-992.85,0.00020211,2]
[381149164,1756081833458,-830.92,0.00020211,2]
[381149165,1756081833467,-400.0,0.00020211,2]
[381149166,1756081833477,-1425.39,0.00020211,2]
[381149167,1756081833487,-1041.14,0.00020211,2]
[381149168,1756081833496,-1055.53,0.00020211,2]
[381149169,1756081833508,-458.79,0.00020211,2]
[381149170,1756081833519,-571.15,0.00020211,2]
[381149171,1756081833529,-400.0,0.00020211,2]
[381149172,1756081833539,-400.0,0.00020211,2]
[381149173,1756081833549,-400.0,0.00020211,2]
[381149174,1756081833561,-400.0,0.00020211,2]
[381149175,1756081833579,-1175.69,0.00020211,2]
[381149176,1756081833589,-906.88,0.00020211,2]
[381149177,1756081833599,-844.35788172,0.00020213,2]
[381149178,1756081833609,-160.0,0.00020213,2]
[381149179,1756081833618,-1272.54,0.00020215,2]
[381149180,1756081833629,-322.6107,0.00020242,2]
[381149181,1756081833639,-267.46074303,0.00020242,2]
[381149182,1756081833648,-160.0,0.00020242,2]
[381149183,1756081833658,-15774.76870367,0.00020247,2]
[381149184,1756081833668,-155.0,0.000203,4]
[381149185,1756081833677,-155.55290222,0.00020373,2]
[381149186,1756081833687,-386.86640222,0.00020381,2]
[381149187,1756081833696,-385.87598487,0.00020382,2]
[381149188,1756081833706,-13197.30726143,0.00020382,2]
[381149189,1756081833716,-532.1278069,0.00020382,2]
[381149190,1756081833726,-5846.29556129,0.00020383,2]
[381149191,1756081833736,-1890.32842481,0.00020385,2]
[381149192,1756081833745,-500.0,0.00020465,2]
[381149193,1756081833758,-2323.0,0.00020466,2]
[381149194,1756081833767,-524.0,0.00020466,2]
[381149195,1756081833777,-153.24,0.00020471,2]
[381149196,1756081833789,-2047.11,0.0002048,2]
[381149197,1756081833799,-3945.28,0.0002048,2]
[381149198,1756081833808,-3093.32,0.0002048,2]
[381149199,1756081833818,-2125.22,0.0002048,2]
[381149200,1756081833827,-400.0,0.0002048,2]
[381149201,1756081833836,-400.0,0.0002048,2]
[381149202,1756081833846,-400.0,0.0002048,2]
[381149203,1756081833856,-400.0,0.0002048,2]
[381149204,1756081833866,-3287.97,0.0002048,2]
[381149205,1756081833876,-400.0,0.0002048,2]
[381149206,1756081833886,-1113.91,0.0002048,2]
[381149207,1756081833895,-400.0,0.0002048,2]
[381149208,1756081833905,-400.0,0.0002048,2]
[381149209,1756081833915,-400.0,0.0002048,2]
[381149210,1756081833924,-1193.72,0.0002048,2]
[381149211,1756081833933,-851.69,0.0002048,2]
[381149212,1756081833943,-400.0,0.0002048,2]
[381149213,1756081833952,-58.06442687,0.0002048,2]
[381149214,1756081833965,-1174.58557313,0.0002048,2]
[381149215,1756081833974,-400.0,0.0002048,2]
[381149216,1756081833983,-18.24672269,0.0002048,2]
[381149217,1756081834082,-1286.63327731,0.0002048,2]
[381149218,1756081834091,-256.17741738,0.0002048,2]
[381149219,1756081834131,-431.44258262,0.0002048,2]
[381149220,1756081834140,-499.06435069,0.0002048,2]
[381149221,1756081834151,-971.27564931,0.0002048,2]
[381149222,1756081834161,-400.0,0.0002048,2]
[381149223,1756081834170,-791.35,0.0002048,2]
[381149224,1756081834179,-400.0,0.0002048,2]
[381149225,1756081834189,-400.0,0.0002048,2]
[381149226,1756081834199,-742.71,0.0002048,2]
[381149227,1756081834208,-5.76026481,0.0002048,2]
[381149233,1756081837642,-154.63,0.00020471,2]
[381149234,1756081837651,-154.63,0.00020471,2]
[381149235,1756081837660,-154.63,0.00020471,2]
[381149236,1756081837670,-154.63,0.00020472,2]
[381149237,1756081837679,-154.63,0.00020472,2]
[381149238,1756081837688,-190.54884153,0.0002048,2]
[381149239,1756081837698,-52.50357874,0.0002048,2]
[381149243,1756081837827,-447.49642126,0.0002048,2]
[381149245,1756081837837,-280.59787064,0.0002048,2]
[381149247,1756081837846,-392.1591274,0.0002048,2]
[381149249,1756081837856,-1956.50973519,0.0002048,2]
[381149251,1756081837866,-400.0,0.0002048,2]
[381149253,1756081837875,-950.42,0.0002048,2]
[381149255,1756081837884,-409.77654438,0.0002048,2]
[381149257,1756081837896,-1045.89345562,0.0002048,2]
[381149259,1756081837905,-227.03965222,0.0002048,2]
[381149263,1756081837928,-1280.05034778,0.0002048,2]
[381149265,1756081837937,-1082.83,0.0002048,2]
[381149267,1756081837946,-19617.96569815,0.00020481,8]
[381149437,1756081841598,-400.0,0.0002048,2]
[381149438,1756081841608,-400.0,0.0002048,2]
[381149439,1756081841617,-559.0,0.00020481,8]
[381149440,1756081841628,-461.58,0.00020481,8]
[381149441,1756081841690,-1131.02,0.0002048,2]
[381149442,1756081841700,-65331.7232062,0.00020481,8]
[381149464,1756081842833,-894.90439888,0.00020471,2]
[381149465,1756081842843,-400.0,0.0002048,2]
[381149466,1756081842852,-1422.7,0.0002048,2]
[381149467,1756081842862,-106848.80255672,0.00020481,8]
[381149476,1756081845683,-400.0,0.0002048,2]
[381149477,1756081845694,-1185.79,0.0002048,2]
[381149478,1756081845703,-2180.55,0.0002048,2]
[381149479,1756081845714,-400.0,0.0002048,2]
[381149480,1756081845724,-400.0,0.0002048,2]
[381149481,1756081845733,-54487.76555943,0.00020481,8]
[381149482,1756081845857,-9815.6,0.00020481,8]
[381149483,1756081845869,-1159.90187976,0.00020481,8]
[381149559,1756082200108,400.0,0.00028767,120]
[381149560,1756082202975,192.53,0.00026805,120]
[381149561,1756082214792,400.0,0.00028767,120]
[381149562,1756082223215,400.0,0.00028767,120]
[381149563,1756082236320,400.0,0.00028767,120]
[381149564,1756082250123,400.0,0.00028767,120]
[381149565,1756082257488,400.0,0.00028767,120]
[381149640,1756083031858,-175.68,0.00013699,2]
[381149641,1756083031868,-173.92918449,0.00013699,2]
[381149642,1756083031877,-152.0,0.00014384,2]
[381149643,1756083031887,-250.0,0.00015068,2]
[381149644,1756083031895,-500.0,0.00015068,2]
[381149645,1756083031905,-152.0,0.00015068,2]
[381149646,1756083031914,-159.6,0.00015489,2]
[381149647,1756083031923,-152.0,0.00016355,2]
[381149648,1756083031932,-150.0,0.00018419,2]
[381149649,1756083031941,-150.0,0.00018419,2]
[381149650,1756083031950,-150.0,0.00018419,2]
[381149651,1756083031959,-150.0,0.00018419,2]
[381149652,1756083031968,-150.0,0.00018419,2]
[381149653,1756083031977,-150.0,0.00019101,2]
[381149654,1756083031986,-1739.02,0.00019238,2]
[381149655,1756083031995,-198.515347,0.00019276,2]
[381149656,1756083032005,-799.32,0.000193,2]
[381149657,1756083032016,-173.92918449,0.00019305,2]
[381149658,1756083032025,-312.75,0.00019305,2]
[381149659,1756083032034,-150.0,0.00019359,2]
[381149660,1756083032044,-666.0,0.00019374,3]
[381149661,1756083032054,-291.21,0.00019438,2]
[381149662,1756083032063,-192.53,0.00019495,2]
[381149663,1756083032073,-163.44,0.00019498,2]
[381149664,1756083032083,-799.32,0.000195,2]
[381149665,1756083032091,-1000.0,0.00019553,2]
[381149666,1756083032104,-1200.0,0.00019599,2]
[381149672,1756083032114,-1351.61497786,0.000196,7]
[381149675,1756083032429,-648.38502214,0.000196,7]
[381149676,1756083032438,-300.0,0.00019699,2]
[381149677,1756083032448,-118.79602535,0.00019699,2]
[381149678,1756083032460,-181.20397465,0.00019699,2]
[381149679,1756083032469,-4100.0,0.000197,7]
[381149680,1756083032478,-150.0,0.00019784,4]
[381149681,1756083032488,-539.0,0.000198,2]
[381149682,1756083032497,-6200.0,0.000198,7]
[381149683,1756083032507,-70.79602535,0.00019841,2]
[381149684,1756083032528,-727.80397465,0.00019841,2]
[381149685,1756083032538,-8200.0,0.000199,7]
[381149686,1756083032548,-799.08,0.00019975,2]
[381149687,1756083032557,-871.70360332,0.00019981,2]
[381149688,1756083032568,-5696.0,0.0002,7]
[381149689,1756083032578,-500.0,0.0002,2]
[381149690,1756083032588,-166.4,0.00020083,2]
[381149691,1756083032598,-936.45,0.000201,2]
[381149692,1756083032607,-871.70360332,0.00020152,2]
[381149693,1756083032617,-175.68,0.00020187,2]
[381149694,1756083032626,-794.84,0.000202,2]
[381149695,1756083032637,-469.13,0.000202,2]
[381149696,1756083032647,-267.46074303,0.00020242,2]
[381149697,1756083032656,-978.44635377,0.0002029,2]
[381149698,1756083032666,-173.67,0.000203,2]
[381149699,1756083032675,-408.53,0.000203,2]
[381149700,1756083032685,-469.13,0.000203,2]
[381149701,1756083032694,-469.13,0.000203,2]
[381149702,1756083032704,-150.0,0.000203,2]
[381149703,1756083032714,-322.6107,0.00020368,2]
[381149704,1756083032723,-211.37775668,0.00020368,2]
[381149705,1756083032733,-155.55290222,0.00020378,2]
[381149706,1756083032742,-799.27078736,0.00020378,2]
[381149707,1756083032751,-231.0893,0.00020379,2]